[Event "Live Chess"]
[Site "Chess.com"]
[Date "2023.05.21"]
[Round "-"]
[White "lHolyDiverl"]
[Black "luckywookie"]
[Result "0-1"]
[WhiteElo "552"]
[BlackElo "826"]
[TimeControl "300"]
[EndTime "8:53:20 PDT"]
[Termination "luckywookie won on time"]

1. d4 {[%clk 0:04:56.7]} 1... c6 {[%clk 0:04:57.8]} 2. Nc3 {[%clk 0:04:54.2]}
2... d5 {[%clk 0:04:56.4]} 3. Bf4 {[%clk 0:04:52.7]} 3... e6 {[%clk 0:04:49]} 4.
Nf3 {[%clk 0:04:51.6]} 4... Nd7 {[%clk 0:04:47.4]} 5. Ne5 {[%clk 0:04:45.2]}
5... Nxe5 {[%clk 0:04:45.4]} 6. Bxe5 {[%clk 0:04:44.4]} 6... f6 {[%clk
0:04:40.8]} 7. Bg3 {[%clk 0:04:38.4]} 7... Bd6 {[%clk 0:04:39.4]} 8. Qd3 {[%clk
0:04:32]} 8... e5 {[%clk 0:04:34.4]} 9. dxe5 {[%clk 0:04:26.8]} 9... Bxe5 {[%clk
0:04:27.2]} 10. Bxe5 {[%clk 0:04:14.4]} 10... fxe5 {[%clk 0:04:24.3]} 11. e4
{[%clk 0:03:55.9]} 11... d4 {[%clk 0:04:19.4]} 12. Ne2 {[%clk 0:03:50.2]} 12...
Qa5+ {[%clk 0:04:15.9]} 13. c3 {[%clk 0:03:44.3]} 13... c5 {[%clk 0:04:10.8]}
14. Qg3 {[%clk 0:03:32.6]} 14... Qc7 {[%clk 0:04:02.5]} 15. cxd4 {[%clk
0:03:15.5]} 15... cxd4 {[%clk 0:03:55.6]} 16. Nxd4 {[%clk 0:02:56.7]} 16... Qa5+
{[%clk 0:03:28.9]} 17. Qc3 {[%clk 0:02:10.6]} 17... Qxc3+ {[%clk 0:03:24.6]} 18.
bxc3 {[%clk 0:02:06.5]} 18... exd4 {[%clk 0:03:23.8]} 19. cxd4 {[%clk
0:02:04.4]} 19... Nf6 {[%clk 0:03:21.5]} 20. O-O-O {[%clk 0:01:52.6]} 20... Nxe4
{[%clk 0:03:16.5]} 21. Bb5+ {[%clk 0:01:44.9]} 21... Bd7 {[%clk 0:03:13.6]} 22.
Bxd7+ {[%clk 0:01:39.8]} 22... Kxd7 {[%clk 0:03:12.4]} 23. Rhf1 {[%clk
0:01:26.7]} 23... Rac8+ {[%clk 0:03:09.5]} 24. Kb2 {[%clk 0:01:24.3]} 24... Nc3
{[%clk 0:02:53.1]} 25. Rde1 {[%clk 0:01:12.9]} 25... Na4+ {[%clk 0:02:45.6]} 26.
Ka1 {[%clk 0:01:08]} 26... Rhe8 {[%clk 0:02:40.5]} 27. Rb1 {[%clk 0:01:02.6]}
27... Rc2 {[%clk 0:02:34.6]} 28. Rxb7+ {[%clk 0:00:51.8]} 28... Kc6 {[%clk
0:02:32.7]} 29. Rxa7 {[%clk 0:00:43.4]} 29... Kb5 {[%clk 0:01:49.7]} 30. d5
{[%clk 0:00:31.7]} 30... Ree2 {[%clk 0:01:48.1]} 31. Rb7+ {[%clk 0:00:10.9]}
31... Nb6 {[%clk 0:01:45.8]} 32. Ra7 {[%clk 0:00:04.9]} 32... Na4 {[%clk
0:01:43.3]} 33. Rb7+ {[%clk 0:00:02.7]} 33... Nb6 {[%clk 0:01:41.6]} 34. Ra7
{[%clk 0:00:01.6]} 34... Nxd5 {[%clk 0:01:37.2]} 35. Rb7+ {[%clk 0:00:00.7]}
35... Nb6 {[%clk 0:01:35.9]} 0-1

[Event "Live Chess"]
[Site "Chess.com"]
[Date "2023.05.21"]
[Round "-"]
[White "yeetpizza74"]
[Black "friarnator"]
[Result "0-1"]
[WhiteElo "497"]
[BlackElo "2034"]
[TimeControl "300"]
[EndTime "8:53:23 PDT"]
[Termination "friarnator won by checkmate"]

1. e4 {[%clk 0:04:58.3]} 1... Nf6 {[%clk 0:04:57.7]} 2. Nc3 {[%clk 0:04:54.2]}
2... d5 {[%clk 0:04:56.4]} 3. d3 {[%clk 0:04:49]} 3... dxe4 {[%clk 0:04:54.7]}
4. dxe4 {[%clk 0:04:47.4]} 4... Qxd1+ {[%clk 0:04:54.6]} 5. Kxd1 {[%clk
0:04:43.1]} 5... c6 {[%clk 0:04:53.9]} 6. f4 {[%clk 0:04:37.9]} 6... Bg4+ {[%clk
0:04:51.4]} 7. Be2 {[%clk 0:04:35.3]} 7... Nbd7 {[%clk 0:04:51.3]} 8. e5 {[%clk
0:04:30.7]} 8... Bxe2+ {[%clk 0:04:46.9]} 9. Ngxe2 {[%clk 0:04:28.6]} 9... Nd5
{[%clk 0:04:46.6]} 10. Nxd5 {[%clk 0:04:26.8]} 10... cxd5 {[%clk 0:04:46.5]} 11.
Nd4 {[%clk 0:04:24.3]} 11... e6 {[%clk 0:04:43.4]} 12. f5 {[%clk 0:04:19]} 12...
Nxe5 {[%clk 0:04:41.5]} 13. fxe6 {[%clk 0:04:12.6]} 13... Bc5 {[%clk 0:04:38.9]}
14. exf7+ {[%clk 0:04:06.8]} 14... Kxf7 {[%clk 0:04:36.7]} 15. Nf5 {[%clk
0:03:56.9]} 15... Rhf8 {[%clk 0:04:28.4]} 16. Be3 {[%clk 0:03:47.5]} 16... Bxe3
{[%clk 0:04:24.8]} 17. Nxe3 {[%clk 0:03:46]} 17... Kg8 {[%clk 0:04:24.7]} 18.
Rf1 {[%clk 0:03:41]} 18... d4 {[%clk 0:04:22.7]} 19. Rxf8+ {[%clk 0:03:38.6]}
19... Rxf8 {[%clk 0:04:22.6]} 20. Nd5 {[%clk 0:03:35.5]} 20... Rf1+ {[%clk
0:04:21.7]} 21. Kd2 {[%clk 0:03:32.9]} 21... Rxa1 {[%clk 0:04:21.6]} 22. Ne7+
{[%clk 0:03:30.2]} 22... Kf7 {[%clk 0:04:19.2]} 23. Nc8 {[%clk 0:03:24.6]} 23...
Rxa2 {[%clk 0:04:17.8]} 24. Nd6+ {[%clk 0:03:21.6]} 24... Ke6 {[%clk 0:04:16]}
25. Nxb7 {[%clk 0:03:18.7]} 25... Rxb2 {[%clk 0:04:15.2]} 26. Nc5+ {[%clk
0:03:14.5]} 26... Kd5 {[%clk 0:04:13.8]} 27. Na4 {[%clk 0:03:01.1]} 27... Ra2
{[%clk 0:04:08.4]} 28. Nc3+ {[%clk 0:02:43.1]} 28... dxc3+ {[%clk 0:04:05.9]}
29. Kxc3 {[%clk 0:02:42.4]} 29... Ra6 {[%clk 0:04:03.2]} 30. Kb3 {[%clk
0:02:40.3]} 30... Rc6 {[%clk 0:04:02.4]} 31. h3 {[%clk 0:02:33]} 31... Rc4
{[%clk 0:04:02.3]} 32. g4 {[%clk 0:02:29.9]} 32... a5 {[%clk 0:04:02.2]} 33. g5
{[%clk 0:02:25.8]} 33... a4+ {[%clk 0:04:02.1]} 34. Kb2 {[%clk 0:02:24]} 34...
g6 {[%clk 0:04:02]} 35. h4 {[%clk 0:02:22.1]} 35... Rxh4 {[%clk 0:04:00.8]} 36.
Ka3 {[%clk 0:02:17.7]} 36... Rc4 {[%clk 0:04:00.7]} 37. c3 {[%clk 0:02:16.2]}
37... Rxc3+ {[%clk 0:03:58.7]} 38. Kxa4 {[%clk 0:02:15.3]} 38... Kc5 {[%clk
0:03:57.4]} 39. Ka5 {[%clk 0:02:14.1]} 39... Ra3# {[%clk 0:03:57.1]} 0-1

[Event "Live Chess"]
[Site "Chess.com"]
[Date "2023.05.21"]
[Round "-"]
[White "CeladonFish"]
[Black "1600x"]
[Result "0-1"]
[WhiteElo "1137"]
[BlackElo "1936"]
[TimeControl "300"]
[EndTime "8:53:33 PDT"]
[Termination "1600x won by resignation"]

1. d4 {[%clk 0:04:58.1]} 1... e5 {[%clk 0:04:59.6]} 2. dxe5 {[%clk 0:04:55.7]}
2... d6 {[%clk 0:04:58.2]} 3. exd6 {[%clk 0:04:54.3]} 3... Qxd6 {[%clk
0:04:56.5]} 4. Qxd6 {[%clk 0:04:53.1]} 4... cxd6 {[%clk 0:04:56.2]} 5. Nc3
{[%clk 0:04:51.9]} 5... Nc6 {[%clk 0:04:52.9]} 6. Bf4 {[%clk 0:04:49.6]} 6...
Nf6 {[%clk 0:04:51]} 7. e3 {[%clk 0:04:48.4]} 7... Be7 {[%clk 0:04:49.5]} 8. Bb5
{[%clk 0:04:46]} 8... a6 {[%clk 0:04:47.9]} 9. Bxc6+ {[%clk 0:04:43.8]} 9...
bxc6 {[%clk 0:04:46.7]} 10. Nf3 {[%clk 0:04:42.3]} 10... O-O {[%clk 0:04:44.9]}
11. O-O {[%clk 0:04:40.5]} 11... Bf5 {[%clk 0:04:43.2]} 12. Nd4 {[%clk
0:04:37.4]} 12... Bd7 {[%clk 0:04:41.5]} 13. Rfd1 {[%clk 0:04:32.6]} 13... Rfd8
{[%clk 0:04:38.8]} 14. Nb3 {[%clk 0:04:26.6]} 14... Bg4 {[%clk 0:04:30]} 15. f3
{[%clk 0:04:23.3]} 15... Be6 {[%clk 0:04:28.8]} 16. Nd4 {[%clk 0:04:18.9]} 16...
Rac8 {[%clk 0:04:26.9]} 17. Nxe6 {[%clk 0:04:16.8]} 17... fxe6 {[%clk
0:04:25.5]} 18. Rd2 {[%clk 0:04:13.5]} 18... Nd5 {[%clk 0:04:24.3]} 19. Nxd5
{[%clk 0:04:11.2]} 19... cxd5 {[%clk 0:04:23.2]} 20. Rad1 {[%clk 0:04:08.4]}
20... g6 {[%clk 0:04:22]} 21. e4 {[%clk 0:04:07.6]} 21... dxe4 {[%clk
0:04:20.9]} 22. Bxd6 {[%clk 0:04:06.2]} 22... e3 {[%clk 0:04:19.3]} 23. Rd3
{[%clk 0:03:56.5]} 23... e2 {[%clk 0:04:17.9]} 24. Re1 {[%clk 0:03:44.2]} 24...
Rxc2 {[%clk 0:04:16.4]} 25. Ba3 {[%clk 0:03:37]} 25... Rxd3 {[%clk 0:04:13.9]}
0-1

[Event "Live Chess"]
[Site "Chess.com"]
[Date "2023.05.21"]
[Round "-"]
[White "OleksiyJr1"]
[Black "ConorMaclaud"]
[Result "0-1"]
[WhiteElo "1043"]
[BlackElo "2117"]
[TimeControl "300"]
[EndTime "8:53:34 PDT"]
[Termination "ConorMaclaud won by resignation"]

1. e4 {[%clk 0:04:58.5]} 1... c6 {[%clk 0:04:59.3]} 2. e5 {[%clk 0:04:57.1]}
2... d5 {[%clk 0:04:59.2]} 3. d4 {[%clk 0:04:56.1]} 3... Bf5 {[%clk 0:04:58.6]}
4. Nf3 {[%clk 0:04:55.5]} 4... e6 {[%clk 0:04:57.4]} 5. Nc3 {[%clk 0:04:55.2]}
5... Ne7 {[%clk 0:04:56.8]} 6. Bd3 {[%clk 0:04:54.4]} 6... Bxd3 {[%clk
0:04:55.2]} 7. Qxd3 {[%clk 0:04:54.3]} 7... Nd7 {[%clk 0:04:54.1]} 8. O-O {[%clk
0:04:53.5]} 8... Nf5 {[%clk 0:04:53.2]} 9. Bg5 {[%clk 0:04:51.2]} 9... Qb6
{[%clk 0:04:50.6]} 10. b3 {[%clk 0:04:48.4]} 10... h6 {[%clk 0:04:42.5]} 11. Bf4
{[%clk 0:04:43.8]} 11... g5 {[%clk 0:04:32.5]} 12. Bd2 {[%clk 0:04:37.4]} 12...
g4 {[%clk 0:04:31.6]} 13. Ne1 {[%clk 0:04:29.8]} 13... Qxd4 {[%clk 0:04:29.9]}
14. Qxd4 {[%clk 0:04:27.2]} 14... Nxd4 {[%clk 0:04:29.8]} 15. f3 {[%clk
0:04:25.5]} 15... gxf3 {[%clk 0:04:26.9]} 16. Nxf3 {[%clk 0:04:23.2]} 16...
Nxf3+ {[%clk 0:04:25.6]} 17. Rxf3 {[%clk 0:04:21.8]} 17... Nxe5 {[%clk
0:04:25.1]} 0-1

[Event "Live Chess"]
[Site "Chess.com"]
[Date "2023.05.21"]
[Round "-"]
[White "SupremeTactician"]
[Black "JohanKjeldahl"]
[Result "0-1"]
[WhiteElo "2142"]
[BlackElo "1891"]
[TimeControl "300"]
[EndTime "8:53:48 PDT"]
[Termination "JohanKjeldahl won by resignation"]

1. e4 {[%clk 0:04:59.4]} 1... c5 {[%clk 0:04:57.8]} 2. Nf3 {[%clk 0:04:58.7]}
2... Nc6 {[%clk 0:04:55.9]} 3. d4 {[%clk 0:04:58]} 3... cxd4 {[%clk 0:04:54.3]}
4. Nxd4 {[%clk 0:04:57.9]} 4... Nf6 {[%clk 0:04:53.1]} 5. Nc3 {[%clk 0:04:56.7]}
5... e5 {[%clk 0:04:50.9]} 6. Ndb5 {[%clk 0:04:56.2]} 6... d6 {[%clk 0:04:49.9]}
7. Bg5 {[%clk 0:04:55.4]} 7... Be7 {[%clk 0:04:47.5]} 8. Bxf6 {[%clk 0:04:54.4]}
8... gxf6 {[%clk 0:04:46]} 9. Nd5 {[%clk 0:04:54.2]} 9... O-O {[%clk 0:04:38.3]}
10. Bd3 {[%clk 0:04:51.5]} 10... a6 {[%clk 0:04:36.1]} 11. Na3 {[%clk
0:04:50.2]} 11... b5 {[%clk 0:04:34.2]} 12. c4 {[%clk 0:04:49.5]} 12... bxc4
{[%clk 0:04:27.1]} 13. Nxc4 {[%clk 0:04:48.4]} 13... Nd4 {[%clk 0:04:19.3]} 14.
O-O {[%clk 0:04:47.2]} 14... Rb8 {[%clk 0:04:16.4]} 15. b3 {[%clk 0:04:45.5]}
15... Be6 {[%clk 0:04:13.8]} 16. Rc1 {[%clk 0:04:43.1]} 16... Bxd5 {[%clk
0:04:08.9]} 17. exd5 {[%clk 0:04:43]} 17... Qd7 {[%clk 0:04:06.3]} 18. f4 {[%clk
0:04:40.8]} 18... Kh8 {[%clk 0:04:00.3]} 19. fxe5 {[%clk 0:04:38.1]} 19... fxe5
{[%clk 0:03:58.9]} 20. Qh5 {[%clk 0:04:34.3]} 20... f5 {[%clk 0:03:54.1]} 21. g4
{[%clk 0:04:33.3]} 21... e4 {[%clk 0:03:51.1]} 22. Bb1 {[%clk 0:04:30.9]} 22...
Ne2+ {[%clk 0:03:36.7]} 23. Kh1 {[%clk 0:04:28.6]} 23... Nxc1 {[%clk 0:03:34.6]}
24. gxf5 {[%clk 0:04:27.9]} 24... Nd3 {[%clk 0:03:22.8]} 25. Bxd3 {[%clk
0:04:24.8]} 25... exd3 {[%clk 0:03:21.2]} 26. Rf3 {[%clk 0:04:24.6]} 26... Rb5
{[%clk 0:03:00.2]} 27. Rh3 {[%clk 0:04:21.1]} 27... Bf6 {[%clk 0:02:54.5]} 28.
Nxd6 {[%clk 0:04:18.3]} 28... Rxd5 {[%clk 0:02:46]} 0-1

[Event "Live Chess"]
[Site "Chess.com"]
[Date "2023.05.21"]
[Round "-"]
[White "Ferrarifan27"]
[Black "Biranidun"]
[Result "0-1"]
[WhiteElo "2046"]
[BlackElo "2523"]
[TimeControl "300"]
[EndTime "8:53:57 PDT"]
[Termination "Biranidun won by checkmate"]

1. e4 {[%clk 0:04:57.7]} 1... c5 {[%clk 0:04:58.7]} 2. Nf3 {[%clk 0:04:56.4]}
2... d6 {[%clk 0:04:57.7]} 3. d4 {[%clk 0:04:55.3]} 3... cxd4 {[%clk 0:04:57.6]}
4. Nxd4 {[%clk 0:04:54.7]} 4... Nf6 {[%clk 0:04:57.3]} 5. Nc3 {[%clk 0:04:53.6]}
5... g6 {[%clk 0:04:56.9]} 6. Be3 {[%clk 0:04:47.1]} 6... Bg7 {[%clk 0:04:56.1]}
7. f3 {[%clk 0:04:42.2]} 7... O-O {[%clk 0:04:55.6]} 8. Qd2 {[%clk 0:04:41.6]}
8... Nc6 {[%clk 0:04:55.1]} 9. O-O-O {[%clk 0:04:38.2]} 9... d5 {[%clk
0:04:53.9]} 10. Nxc6 {[%clk 0:04:30.2]} 10... bxc6 {[%clk 0:04:52.5]} 11. exd5
{[%clk 0:04:29.3]} 11... Nxd5 {[%clk 0:04:48.5]} 12. Nxd5 {[%clk 0:04:28.3]}
12... cxd5 {[%clk 0:04:47.8]} 13. Qxd5 {[%clk 0:04:26.9]} 13... Qc7 {[%clk
0:04:47]} 14. Qc5 {[%clk 0:04:25.8]} 14... Qb7 {[%clk 0:04:44.6]} 15. b3 {[%clk
0:04:24.8]} 15... Bf5 {[%clk 0:04:36.9]} 16. Bd3 {[%clk 0:04:23.5]} 16... Rac8
{[%clk 0:04:23]} 17. Qb5 {[%clk 0:04:12.5]} 17... Qxb5 {[%clk 0:04:20.8]} 18.
Bxb5 {[%clk 0:04:09.8]} 18... Rxc2+ {[%clk 0:04:20.4]} 19. Kb1 {[%clk
0:04:08.3]} 19... Rb2+ {[%clk 0:04:15.9]} 20. Kc1 {[%clk 0:04:06.6]} 20... Rc8+
{[%clk 0:04:14.2]} 21. Bc4 {[%clk 0:04:05.5]} 21... Rc2+ {[%clk 0:04:10.2]} 22.
Kb1 {[%clk 0:04:02.8]} 22... R2xc4+ {[%clk 0:04:09.8]} 23. Rd3 {[%clk
0:03:47.9]} 23... Bxd3# {[%clk 0:04:08.5]} 0-1

[Event "Live Chess"]
[Site "Chess.com"]
[Date "2023.05.21"]
[Round "-"]
[White "ranvir123"]
[Black "slava_ukr"]
[Result "0-1"]
[WhiteElo "985"]
[BlackElo "2347"]
[TimeControl "300"]
[EndTime "8:53:58 PDT"]
[Termination "slava_ukr won by resignation"]

1. e4 {[%clk 0:04:56.9]} 1... e5 {[%clk 0:04:58.6]} 2. Nf3 {[%clk 0:04:56.5]}
2... Nc6 {[%clk 0:04:57.9]} 3. Bb5 {[%clk 0:04:55.4]} 3... a6 {[%clk 0:04:56.2]}
4. Ba4 {[%clk 0:04:53.7]} 4... Nf6 {[%clk 0:04:55.2]} 5. Nc3 {[%clk 0:04:50.8]}
5... b5 {[%clk 0:04:52]} 6. Bb3 {[%clk 0:04:49.4]} 6... d6 {[%clk 0:04:51.3]} 7.
O-O {[%clk 0:04:47.8]} 7... Na5 {[%clk 0:04:47.8]} 8. Bd5 {[%clk 0:04:41.7]}
8... c6 {[%clk 0:04:45]} 9. Bb3 {[%clk 0:04:37.9]} 9... Nxb3 {[%clk 0:04:43.9]}
10. axb3 {[%clk 0:04:36.7]} 10... Be7 {[%clk 0:04:43.4]} 11. d4 {[%clk
0:04:33.1]} 11... Qc7 {[%clk 0:04:40.9]} 12. dxe5 {[%clk 0:04:31.5]} 12... dxe5
{[%clk 0:04:40]} 13. Bg5 {[%clk 0:04:28.2]} 13... O-O {[%clk 0:04:39.1]} 14. Qd3
{[%clk 0:04:03.5]} 14... Nh5 {[%clk 0:04:31.2]} 15. Bxe7 {[%clk 0:03:54.9]}
15... Qxe7 {[%clk 0:04:30]} 16. Rfd1 {[%clk 0:03:38.9]} 16... Nf4 {[%clk
0:04:27.4]} 17. Qd6 {[%clk 0:03:24.2]} 17... Qxd6 {[%clk 0:04:05.6]} 18. Rxd6
{[%clk 0:03:21]} 18... f6 {[%clk 0:04:04.6]} 19. Rxc6 {[%clk 0:03:16]} 19... Bb7
{[%clk 0:03:57.4]} 20. Rc7 {[%clk 0:03:10.3]} 20... Rf7 {[%clk 0:03:55.6]} 21.
Rxf7 {[%clk 0:03:00.8]} 21... Kxf7 {[%clk 0:03:54.7]} 22. Rd1 {[%clk 0:02:58.2]}
22... Ke7 {[%clk 0:03:36.6]} 23. Nd5+ {[%clk 0:02:44.6]} 23... Bxd5 {[%clk
0:03:30]} 24. exd5 {[%clk 0:02:42.7]} 24... Rc8 {[%clk 0:03:26.2]} 25. c3 {[%clk
0:02:20.4]} 25... g6 {[%clk 0:03:14.5]} 26. g3 {[%clk 0:02:16.8]} 26... Nh5
{[%clk 0:03:09.7]} 27. d6+ {[%clk 0:02:11.8]} 27... Kd7 {[%clk 0:03:08.7]} 28.
h4 {[%clk 0:02:02.9]} 28... Rc6 {[%clk 0:03:02.2]} 29. c4 {[%clk 0:01:58.7]}
29... Rxd6 {[%clk 0:02:59.9]} 30. Rxd6+ {[%clk 0:01:56.9]} 30... Kxd6 {[%clk
0:02:59]} 31. cxb5 {[%clk 0:01:55.4]} 31... axb5 {[%clk 0:02:57.6]} 32. Kg2
{[%clk 0:01:49.6]} 32... Kd5 {[%clk 0:02:56]} 33. Nd2 {[%clk 0:01:46]} 33... f5
{[%clk 0:02:52]} 34. Kf3 {[%clk 0:01:42.6]} 34... Nf6 {[%clk 0:02:50.1]} 35. g4
{[%clk 0:01:41.2]} 35... Nxg4 {[%clk 0:02:47.2]} 36. Kg3 {[%clk 0:01:39.4]}
36... Nf6 {[%clk 0:02:45.7]} 37. Kf3 {[%clk 0:01:37.3]} 37... Kd4 {[%clk
0:02:37.5]} 38. Ke2 {[%clk 0:01:32]} 38... e4 {[%clk 0:02:33.9]} 39. f3 {[%clk
0:01:29.9]} 39... h6 {[%clk 0:02:25.3]} 40. Nf1 {[%clk 0:01:20.2]} 40... exf3+
{[%clk 0:02:22.4]} 41. Kxf3 {[%clk 0:01:19.2]} 41... g5 {[%clk 0:02:21.5]} 42.
h5 {[%clk 0:01:16.4]} 42... Nxh5 {[%clk 0:02:20.1]} 43. Nd2 {[%clk 0:01:15.1]}
43... g4+ {[%clk 0:02:18.5]} 44. Kf2 {[%clk 0:01:13.5]} 44... f4 {[%clk
0:02:15.9]} 0-1

[Event "Live Chess"]
[Site "Chess.com"]
[Date "2023.05.21"]
[Round "-"]
[White "LiamClery2020"]
[Black "garyjc"]
[Result "1-0"]
[WhiteElo "1996"]
[BlackElo "1079"]
[TimeControl "300"]
[EndTime "8:54:03 PDT"]
[Termination "LiamClery2020 won by checkmate"]

1. e4 {[%clk 0:04:59.1]} 1... c5 {[%clk 0:04:58]} 2. Nf3 {[%clk 0:04:57.7]} 2...
a6 {[%clk 0:04:57]} 3. c3 {[%clk 0:04:56]} 3... b5 {[%clk 0:04:48.3]} 4. d4
{[%clk 0:04:54.6]} 4... cxd4 {[%clk 0:04:46.5]} 5. cxd4 {[%clk 0:04:52.7]} 5...
Bb7 {[%clk 0:04:45.2]} 6. Bd3 {[%clk 0:04:51.4]} 6... e6 {[%clk 0:04:34.2]} 7.
Nc3 {[%clk 0:04:49.6]} 7... Bd6 {[%clk 0:04:20.8]} 8. e5 {[%clk 0:04:48]} 8...
Bc7 {[%clk 0:04:19.8]} 9. Be4 {[%clk 0:04:44.4]} 9... Bxe4 {[%clk 0:04:10.4]}
10. Nxe4 {[%clk 0:04:44.3]} 10... Ne7 {[%clk 0:04:07.7]} 11. Qd3 {[%clk
0:04:41.6]} 11... O-O {[%clk 0:03:58.3]} 12. Nfg5 {[%clk 0:04:40.1]} 12... Nd5
{[%clk 0:03:52.1]} 13. Nxh7 {[%clk 0:04:29.8]} 13... Kxh7 {[%clk 0:03:49.4]} 14.
Nf6+ {[%clk 0:04:28.1]} 14... Kh8 {[%clk 0:03:35.1]} 15. Qh7# {[%clk 0:04:21.4]}
1-0

[Event "Live Chess"]
[Site "Chess.com"]
[Date "2023.05.21"]
[Round "-"]
[White "whatnot126"]
[Black "davigator"]
[Result "0-1"]
[WhiteElo "2068"]
[BlackElo "2306"]
[TimeControl "300"]
[EndTime "8:54:20 PDT"]
[Termination "davigator won by checkmate"]

1. e4 {[%clk 0:04:59.4]} 1... c5 {[%clk 0:04:56.9]} 2. c3 {[%clk 0:04:58.4]}
2... d5 {[%clk 0:04:54.5]} 3. exd5 {[%clk 0:04:57.6]} 3... Qxd5 {[%clk
0:04:53.9]} 4. d4 {[%clk 0:04:57.2]} 4... Nc6 {[%clk 0:04:51.9]} 5. Nf3 {[%clk
0:04:56.6]} 5... Nf6 {[%clk 0:04:50.3]} 6. Na3 {[%clk 0:04:53.8]} 6... cxd4
{[%clk 0:04:47.9]} 7. Nb5 {[%clk 0:04:51.9]} 7... Qd8 {[%clk 0:04:40.3]} 8.
Nbxd4 {[%clk 0:04:29.1]} 8... Nxd4 {[%clk 0:04:38.9]} 9. Nxd4 {[%clk 0:04:29]}
9... a6 {[%clk 0:04:35.9]} 10. a4 {[%clk 0:04:22.6]} 10... e6 {[%clk 0:04:34.6]}
11. Bd3 {[%clk 0:04:20.7]} 11... Bc5 {[%clk 0:04:32.1]} 12. Be3 {[%clk
0:04:16.5]} 12... Qe7 {[%clk 0:04:28.7]} 13. O-O {[%clk 0:04:14.7]} 13... O-O
{[%clk 0:04:27.3]} 14. Bg5 {[%clk 0:04:02.6]} 14... h6 {[%clk 0:04:24.1]} 15.
Bh4 {[%clk 0:04:01.5]} 15... Rd8 {[%clk 0:04:16.6]} 16. Bc2 {[%clk 0:03:41.7]}
16... Bxd4 {[%clk 0:04:12.9]} 17. cxd4 {[%clk 0:03:39.6]} 17... Bd7 {[%clk
0:04:09.9]} 18. Qd3 {[%clk 0:03:37.1]} 18... Bc6 {[%clk 0:04:04.8]} 19. Rad1
{[%clk 0:03:24.2]} 19... Rac8 {[%clk 0:04:03.1]} 20. Rfe1 {[%clk 0:03:22.5]}
20... g5 {[%clk 0:03:39.5]} 21. Bg3 {[%clk 0:03:19.6]} 21... Bd5 {[%clk
0:03:28.9]} 22. Be5 {[%clk 0:03:01.1]} 22... Bc4 {[%clk 0:03:15.9]} 23. Qh3
{[%clk 0:02:58.9]} 23... Kg7 {[%clk 0:03:03.4]} 24. Bd3 {[%clk 0:02:37.9]} 24...
Bxd3 {[%clk 0:02:58.9]} 25. Rxd3 {[%clk 0:02:37.8]} 25... Kg6 {[%clk 0:02:57.7]}
26. Rf3 {[%clk 0:02:33.8]} 26... Ng8 {[%clk 0:02:56.4]} 27. g4 {[%clk
0:02:27.8]} 27... f6 {[%clk 0:02:50.3]} 28. Qh5+ {[%clk 0:02:24.1]} 28... Kg7
{[%clk 0:02:49.9]} 29. Bg3 {[%clk 0:02:14.9]} 29... Rxd4 {[%clk 0:02:47.4]} 30.
Rfe3 {[%clk 0:02:05.9]} 30... Rc6 {[%clk 0:02:45.1]} 31. h4 {[%clk 0:02:02.6]}
31... Rxa4 {[%clk 0:02:40.9]} 32. hxg5 {[%clk 0:02:00.8]} 32... hxg5 {[%clk
0:02:36.9]} 33. Kg2 {[%clk 0:01:48.5]} 33... e5 {[%clk 0:02:33.6]} 34. Rh1
{[%clk 0:01:47.3]} 34... Kf8 {[%clk 0:02:32.1]} 35. Rb3 {[%clk 0:01:35]} 35...
b5 {[%clk 0:02:28.7]} 36. Qg6 {[%clk 0:01:34]} 36... Qf7 {[%clk 0:02:27.4]} 37.
Qd3 {[%clk 0:01:31.8]} 37... Rd4 {[%clk 0:02:25.3]} 38. Qe3 {[%clk 0:01:25.1]}
38... Qd5+ {[%clk 0:02:23.5]} 39. f3 {[%clk 0:01:00]} 39... Rd2+ {[%clk
0:02:20.2]} 40. Kf1 {[%clk 0:00:58.5]} 40... Rc1+ {[%clk 0:02:18.2]} 41. Be1
{[%clk 0:00:57.3]} 41... Rdd1 {[%clk 0:02:14]} 42. Kf2 {[%clk 0:00:55.3]} 42...
Rc2+ {[%clk 0:02:05.2]} 43. Kf1 {[%clk 0:00:53.9]} 43... Qc4+ {[%clk 0:01:44.7]}
44. Kg1 {[%clk 0:00:48]} 44... Re2 {[%clk 0:01:41.7]} 45. Qc3 {[%clk 0:00:41.3]}
45... Qxc3 {[%clk 0:01:40.8]} 46. Rxc3 {[%clk 0:00:41.2]} 46... Rdxe1# {[%clk
0:01:39.9]} 0-1

[Event "Live Chess"]
[Site "Chess.com"]
[Date "2023.05.21"]
[Round "-"]
[White "UshkoTheBear"]
[Black "whitedjohn"]
[Result "1-0"]
[WhiteElo "2332"]
[BlackElo "1676"]
[TimeControl "300"]
[EndTime "8:54:21 PDT"]
[Termination "UshkoTheBear won by resignation"]

1. d4 {[%clk 0:04:58.3]} 1... Nf6 {[%clk 0:04:58.7]} 2. Nc3 {[%clk 0:04:57.3]}
2... d5 {[%clk 0:04:57.3]} 3. Bf4 {[%clk 0:04:56.2]} 3... c6 {[%clk 0:04:55.6]}
4. e3 {[%clk 0:04:55.1]} 4... g6 {[%clk 0:04:51.5]} 5. Nf3 {[%clk 0:04:53.9]}
5... Bg4 {[%clk 0:04:47.7]} 6. Qd2 {[%clk 0:04:50.4]} 6... Bxf3 {[%clk
0:04:44.5]} 7. gxf3 {[%clk 0:04:50.3]} 7... Bg7 {[%clk 0:04:43]} 8. h4 {[%clk
0:04:49.5]} 8... Nbd7 {[%clk 0:04:41]} 9. O-O-O {[%clk 0:04:48.1]} 9... Qa5
{[%clk 0:04:32]} 10. Kb1 {[%clk 0:04:46.1]} 10... O-O {[%clk 0:04:29.9]} 11. h5
{[%clk 0:04:43.1]} 11... Nxh5 {[%clk 0:04:26.6]} 12. Rxh5 {[%clk 0:04:42.2]}
12... gxh5 {[%clk 0:04:25.7]} 13. Bd3 {[%clk 0:04:41.5]} 13... Nf6 {[%clk
0:04:22]} 14. Be5 {[%clk 0:04:31.3]} 14... b5 {[%clk 0:04:12.3]} 15. Rh1 {[%clk
0:04:19.8]} 15... b4 {[%clk 0:04:08.7]} 16. Ne2 {[%clk 0:04:17.8]} 16... c5
{[%clk 0:04:01.7]} 17. dxc5 {[%clk 0:04:10.7]} 17... Qxc5 {[%clk 0:03:59.4]} 18.
Nf4 {[%clk 0:04:07.5]} 18... Qc6 {[%clk 0:03:41.2]} 19. Qe2 {[%clk 0:03:39.6]}
19... a5 {[%clk 0:03:31.6]} 20. Qf1 {[%clk 0:03:31.6]} 20... Rac8 {[%clk
0:03:28.7]} 21. Qh3 {[%clk 0:03:25.3]} 21... h6 {[%clk 0:03:25.5]} 22. Rg1
{[%clk 0:03:16.9]} 22... Kh8 {[%clk 0:03:21.8]} 23. Qf5 {[%clk 0:03:04]} 23...
Qd7 {[%clk 0:03:11.8]} 24. Bxf6 {[%clk 0:02:58.2]} 24... Qxf5 {[%clk 0:03:10.1]}
25. Bxg7+ {[%clk 0:02:57.1]} 25... Kg8 {[%clk 0:03:05.8]} 26. Bxf5 {[%clk
0:02:56]} 26... Rfd8 {[%clk 0:02:59.4]} 27. Nxh5 {[%clk 0:02:19.2]} 27... Rc6
{[%clk 0:02:50.1]} 28. Nf6+ {[%clk 0:01:56.4]} 28... exf6 {[%clk 0:02:45.8]} 29.
Bxf6+ {[%clk 0:01:56.3]} 29... Kf8 {[%clk 0:02:43.1]} 30. Bxd8 {[%clk
0:01:55.6]} 1-0